bitfinex/quotes_SOLUSD_20240729
["timestamp","ask_amount","ask_price","bid_price","bid_amount"]
[1722263433906,17.3636,189.27,189.24,6.6625]
[1722263434308,17.3631,189.28,189.24,6.6625]
[1722263434537,12.08,189.28,189.24,6.6625]
[1722263434745,12.08,189.28,189.24,11.9466]
[1722263434918,12.08,189.28,189.24,6.6625]
[1722263435229,17.3632,189.28,189.24,6.6625]
[1722263435540,5.2837,189.26,189.24,6.6625]
[1722263435927,17.3637,189.26,189.24,6.6625]
[1722263436111,12.08,189.25,189.2,5.2853]
[1722263436315,12.08,189.24,189.2,5.2853]
[1722263436519,12.08,189.24,189.19,13.2142]
[1722263436721,12.08,189.24,189.2,5.2852]
[1722263437132,12.08,189.24,189.19,18.4998]
[1722263437334,12.08,189.24,189.19,13.2142]
[1722263437539,12.08,189.24,189.2,5.2853]
[1722263438031,12.08,189.23,189.19,18.4998]
[1722263438230,12.08,189.21,189.18,6.3487]
[1722263438747,12.08,189.2,189.18,6.3487]
[1722263439037,12.08,189.2,189.17,16.1679]
[1722263439038,12.08,189.19,189.17,16.1679]
[1722263440145,12.08,189.2,189.17,16.1679]
[1722263440728,12.08,189.2,189.15,13.2169]
[1722263440929,12.08,189.19,189.15,18.5034]
[1722263441222,12.08,189.19,189.15,13.2169]
[1722263441423,12.08,189.18,189.15,13.2169]
[1722263441838,12.08,189.17,189.13,22.4142]
[1722263442015,12.08,189.17,189.13,27.7015]
[1722263442218,12.08,189.17,189.14,5.2869]
[1722263442417,1.32160962,189.23,189.13,22.4142]
[1722263442418,12.08,189.15,189.13,22.4142]
[1722263442651,12.08,189.15,189.11,18.5069]
[1722263443141,12.08,189.15,189.12,5.2876]
[1722263443346,24.21,189.21,189.11,13.2191]
[1722263443531,5.2857,189.19,189.13,5.2873]
[1722263443851,20.0,189.18,189.13,5.2873]
[1722263444225,20.0,189.18,189.14,5.287]
[1722263444628,15.6951,189.28,189.13,26.6056]
[1722263444835,5.2843,189.24,189.18,18.5006]
[1722263445127,1.32135885,189.26,189.14,13.2172]
[1722263445428,5.2859,189.19,189.14,13.2172]
[1722263445631,37.4208,189.24,189.13,5.2871]
[1722263445632,5.2859,189.18,189.13,5.2871]
[1722263445840,5.2857,189.19,189.13,5.2871]
[1722263446028,5.2857,189.19,189.14,5.287]
[1722263446237,37.4208,189.24,189.14,13.2173]
[1722263446440,5.2856,189.2,189.14,13.2173]
[1722263446644,65.17,189.23,189.14,18.5042]
[1722263446645,5.2857,189.19,189.14,18.5042]
[1722263447038,5.2854,189.2,189.14,18.5042]
[1722263447241,1.32159181,189.22,189.14,13.2173]
[1722263447548,5.2856,189.19,189.14,13.2173]
[1722263447734,5.2856,189.19,189.14,18.5043]
[1722263448355,5.2854,189.2,189.14,18.5043]
[1722263450035,5.2857,189.19,189.14,18.5043]
[1722263450560,5.2857,189.19,189.14,13.2173]
[1722263451149,5.2854,189.21,189.14,13.2173]
[1722263451357,20.0,189.2,189.15,5.2867]
[1722263451557,25.2856,189.2,189.14,13.2173]
[1722263451741,25.2854,189.2,189.14,18.5042]
[1722263452637,25.2854,189.2,189.15,5.2866]
[1722263452867,25.2854,189.2,189.14,18.5043]
[1722263453066,20.0,189.2,189.14,13.2173]
[1722263453254,20.0,189.22,189.15,5.2867]
[1722263453456,50.2854,189.21,189.15,5.2867]
[1722263453769,50.2854,189.21,189.09,22.0977]
[1722263453770,20.0,189.2,189.13,5.2872]
[1722263454160,5.2857,189.19,189.13,5.2872]
[1722263454543,5.2867,189.16,189.11,13.2196]
[1722263454760,5.2868,189.15,189.09,27.3861]
[1722263454956,5.2868,189.15,189.1,5.2881]
[1722263455175,5.287,189.15,189.09,27.3861]
[1722263455549,5.2865,189.16,189.1,5.2881]
[1722263455753,20.0,189.15,189.12,5.2875]
[1722263456266,20.0,189.16,189.11,5.2878]
[1722263456652,25.2866,189.16,189.11,5.2878]
[1722263457474,20.0,189.16,189.12,5.2874]
[1722263457677,21.28297375,189.17,189.12,5.2874]
[1722263457841,5.2857,189.19,189.12,13.2186]
[1722263458269,5.2857,189.19,189.14,5.2869]
[1722263458475,5.2857,189.19,189.13,5.2873]
[1722263459380,5.2854,189.2,189.14,5.287]
[1722263459676,5.2847,189.23,189.15,13.78403176]
[1722263459856,17.38577101,189.28,189.2,13.2128]
[1722263460058,5.2835,189.27,189.21,5.2849]
[1722263460270,5.2838,189.26,189.21,5.2849]
[1722263460590,1.69067101,189.28,189.23,13.2113]
[1722263460775,1.69067101,189.28,189.24,5.2842]
[1722263461454,1.69067101,189.28,189.23,13.2113]
[1722263461771,1.69067101,189.28,189.24,5.2841]
[1722263461952,1.69067101,189.28,189.23,13.2113]
[1722263462374,6.97407101,189.28,189.23,13.2113]
[1722263462881,5.2834,189.28,189.23,13.2113]
[1722263463174,5.282,189.32,189.24,6.513]
[1722263463359,15.8763,189.34,189.26,15.4196]
[1722263463360,5.2817,189.34,189.26,15.4196]
[1722263463553,5.282,189.33,189.27,5.2833]
[1722263463748,13.201,189.38,189.28,5.2829]
[1722263463976,5.2819,189.33,189.26,20.703]
[1722263464180,5.2819,189.33,189.27,5.2832]
[1722263464876,5.2821,189.32,189.26,15.4196]
[1722263465082,13.201,189.38,189.28,5.2831]
[1722263465261,5.2814,189.35,189.29,5.2826]
[1722263465459,24.21,189.41,189.3,5.84678765]
[1722263465773,24.21,189.41,189.3,5.2825]
[1722263466074,5.2809,189.36,189.3,5.2825]
[1722263466286,5.2806,189.38,189.31,0.17]
[1722263466448,5.2801,189.39,189.33,13.2044]
[1722263466952,13.1959,189.46,189.34,23.1523043]
[1722263467179,5.2796,189.41,189.34,27.8698]
[1722263467373,5.2796,189.41,189.35,5.2812]
[1722263467887,5.2793,189.42,189.35,5.2812]
[1722263468089,5.2789,189.44,189.36,13.2021]
[1722263468297,5.2787,189.45,189.38,5.2803]
[1722263468479,24.21,189.49,189.37,0.17]
[1722263468969,13.1929,189.5,189.37,0.73279752]
[1722263469175,5.2785,189.45,189.39,5.28]
[1722263469896,5.2784,189.45,189.39,18.4799]
[1722263470104,5.2787,189.44,189.39,13.1998]
[1722263470997,5.2784,189.45,189.39,18.4797]
[1722263471219,63.7808,189.54,189.42,5.2792]
[1722263471370,5.2778,189.48,189.42,5.2792]
[1722263471569,5.2776,189.48,189.42,13.1981]
[1722263471785,37.4,189.54,189.42,13.1981]
[1722263471786,5.2772,189.5,189.43,5.2788]
[1722263471980,5.2774,189.49,189.44,6.6063]
[1722263472169,5.2776,189.48,189.44,22.0266]
[1722263472369,5.2772,189.5,189.44,27.3052]
[1722263472599,5.2775,189.49,189.44,22.0266]
[1722263472902,5.277,189.51,189.45,5.2784]
[1722263473066,5.2764,189.53,189.46,5.83964232]
[1722263473267,5.2762,189.53,189.47,5.2777]
[1722263473504,5.2759,189.54,189.48,5.2775]
[1722263473781,5.2756,189.55,189.49,5.83842888]
[1722263473970,5.2753,189.57,189.48,13.3639]
[1722263474187,5.2753,189.57,189.49,6.6395]
[1722263474377,5.2753,189.57,189.51,5.2766]
[1722263474569,5.2753,189.57,189.52,0.17]
[1722263475204,5.2754,189.56,189.5,5.277]
[1722263475494,5.2757,189.55,189.49,6.4695]
[1722263475699,5.2753,189.57,189.5,5.4469]
[1722263476086,5.2755,189.56,189.5,5.4469]
[1722263476292,5.2754,189.56,189.5,0.17]
[1722263476495,5.2754,189.56,189.5,5.447]
[1722263476689,14.47043206,189.62,189.49,6.4695]
[1722263476869,5.276,189.54,189.49,6.4695]
[1722263477073,20.17,189.61,189.49,6.4695]
[1722263477275,5.2754,189.56,189.49,6.4695]
[1722263477587,20.17,189.61,189.51,5.2767]
[1722263477781,45.0,189.6,189.51,5.2767]
[1722263478117,5.2749,189.58,189.53,5.2761]
[1722263478276,20.0,189.57,189.52,5.2764]
[1722263478802,5.2746,189.59,189.53,5.2761]
[1722263478974,20.0,189.58,189.53,20.5133]
[1722263479175,25.2748,189.58,189.53,20.5133]
[1722263479388,25.2748,189.58,189.53,15.2372]
[1722263479585,5.2752,189.57,189.53,15.2372]
[1722263480707,25.2748,189.58,189.53,15.2372]
[1722263480886,20.0,189.58,189.53,20.5133]
[1722263481087,5.2739,189.62,189.54,13.1895]
[1722263481291,1.31847618,189.65,189.58,6.6326]
[1722263481492,0.7828759,189.69,189.6,13.1853]
[1722263481493,5.2728,189.66,189.6,13.1853]
[1722263481697,0.7828759,189.69,189.6,13.1853]
[1722263482007,0.7828759,189.69,189.61,0.55921593]
[1722263482201,0.7828759,189.69,189.6,13.1853]
[1722263482384,0.7828759,189.69,189.63,13.1832]
[1722263483129,5.2726,189.66,189.61,21.3504]
[1722263483422,0.7828759,189.69,189.61,21.3504]
[1722263483423,5.2725,189.67,189.61,16.0765]
[1722263483622,0.7828759,189.69,189.61,16.0765]
[1722263483918,5.2729,189.65,189.61,16.0765]
[1722263484297,0.7828759,189.69,189.61,16.0765]
[1722263484298,5.2726,189.66,189.61,21.3504]
[1722263484616,5.2723,189.67,189.62,5.2736]
[1722263484920,5.2728,189.66,189.61,16.0765]
[1722263485103,0.7828759,189.69,189.63,5.2731]
[1722263485512,6.0547759,189.69,189.64,5.2731]
[1722263485712,20.0,189.68,189.64,5.2731]
[1722263485915,20.0,189.68,189.63,5.2733]
[1722263486115,25.272,189.68,189.62,18.4578]
[1722263486311,20.0,189.68,189.62,13.1842]
[1722263486513,20.7828759,189.69,189.62,13.1842]
[1722263486903,0.7828759,189.69,189.63,0.17]
[1722263487120,0.7828759,189.69,189.64,5.2731]
[1722263487322,20.7828759,189.69,189.65,5.2728]
[1722263487533,0.7828759,189.69,189.68,18.452]
[1722263487812,0.7828759,189.69,189.66,5.2725]
[1722263488234,0.7828759,189.69,189.65,18.4549]
[1722263488397,0.7828759,189.69,189.65,13.1821]
[1722263488819,0.7828759,189.69,189.66,0.55837615]
[1722263489007,0.7828759,189.69,189.65,13.1821]
[1722263489204,0.7828759,189.69,189.66,0.17]
[1722263489428,0.7828759,189.69,189.67,11.7279]
[1722263490523,0.7828759,189.69,189.67,6.4556]
[1722263491031,0.7828759,189.69,189.67,11.7279]
[1722263491209,0.7828759,189.69,189.67,6.4556]
[1722263491406,6.0545759,189.69,189.67,6.4556]
[1722263491709,0.7828759,189.69,189.67,6.4556]
[1722263492426,0.7828759,189.69,189.67,11.7279]
[1722263492926,0.7828759,189.69,189.68,5.272]
[1722263494102,0.7828759,189.69,189.67,6.4556]
[1722263494543,5.2721,189.68,189.63,13.1835]
[1722263494841,0.7828759,189.69,189.65,5.2727]
[1722263495400,0.7828759,189.69,189.65,13.1815]
[1722263495803,0.7828759,189.69,189.68,18.452]
[1722263497110,0.7828759,189.69,189.68,13.18]
[1722263497306,0.7828759,189.69,189.68,18.452]
[1722263498932,0.7828759,189.69,189.68,18.622]
[1722263499309,0.7828759,189.69,189.68,34.1846]
[1722263499813,0.7828759,189.69,189.68,112.0584]
[1722263500020,39.4447,189.84,189.68,93.6064]
[1722263500021,15.2347,189.84,189.68,93.6064]
[1722263500221,0.4992,189.85,189.78,5.2689]
[1722263500535,5.2684,189.82,189.77,13.1732]
[1722263500728,1.31715734,189.84,189.7,24.21]
[1722263500729,5.2685,189.81,189.75,5.27]
[1722263501118,5.2681,189.83,189.77,5.2694]
[1722263501715,5.2676,189.84,189.78,5.2691]
[1722263501921,5.2676,189.84,189.76,13.1744]
[1722263502231,0.4992,189.85,189.78,5.2692]
[1722263502232,5.7667,189.85,189.78,5.2692]
[1722263502427,5.7667,189.85,189.79,5.2689]
[1722263502807,5.2676,189.84,189.78,5.2692]
[1722263503031,0.4992,189.85,189.77,22.5932]
[1722263503232,0.4992,189.85,189.78,5.2692]
[1722263503438,0.4992,189.85,189.77,22.5932]
[1722263503726,0.4992,189.85,189.79,13.1721]
[1722263504749,0.4992,189.85,189.81,5.2684]
[1722263505546,0.4992,189.85,189.79,13.1721]
[1722263505728,0.4992,189.85,189.8,0.17]
[1722263506128,0.4992,189.85,189.81,5.2681]
[1722263506326,0.4992,189.85,189.82,5.268]
[1722263506730,0.4992,189.85,189.82,5.2681]
[1722263507047,0.4992,189.85,189.83,5.4377]
[1722263507216,0.4992,189.85,189.82,13.1702]
[1722263507713,0.4992,189.85,189.83,5.2678]
[1722263508111,0.4992,189.85,189.82,13.1702]
[1722263508339,0.4992,189.85,189.8,0.17]
[1722263508536,5.2676,189.84,189.78,13.1725]
[1722263508716,0.4992,189.85,189.78,13.1725]
[1722263508924,0.4992,189.85,189.77,22.5932]
[1722263509551,5.2682,189.82,189.77,22.5932]
[1722263510247,0.4992,189.85,189.77,6.6386]
[1722263510463,5.2685,189.81,189.77,6.6386]
[1722263510753,37.379,189.84,189.74,13.1752]
[1722263510925,5.2692,189.78,189.73,16.5841]
[1722263511422,5.2684,189.81,189.74,5.2701]
[1722263511737,5.2687,189.8,189.74,5.2701]
[1722263511922,24.21,189.84,189.73,35.0312]
[1722263511923,5.2691,189.79,189.73,35.0312]
[1722263512643,5.2691,189.79,189.74,5.2703]
[1722263512852,5.2685,189.81,189.75,5.27]
[1722263513730,5.2681,189.82,189.76,5.2697]
[1722263514033,20.0,189.81,189.75,13.1745]
[1722263514241,5.2676,189.84,189.78,5.2692]
[1722263514536,1.81633496,189.85,189.76,0.17]
[1722263514537,5.2679,189.83,189.76,0.17]
[1722263514738,20.0,189.82,189.76,5.4395]
[1722263514950,5.2684,189.81,189.76,5.4395]
[1722263515119,20.0,189.82,189.76,5.4395]
[1722263515320,20.0,189.82,189.77,5.2694]
[1722263515543,20.0,189.82,189.77,13.1732]
[1722263515719,20.0,189.84,189.8,13.1716]
[1722263515919,0.4992,189.85,189.8,13.1716]
[1722263516350,0.4992,189.85,189.81,0.55625652]
[1722263516656,0.4992,189.85,189.81,5.2683]
[1722263516829,0.4992,189.85,189.82,0.55572696]
[1722263517032,0.4992,189.85,189.83,5.2678]
[1722263517239,0.4992,189.85,189.84,5.2675]
[1722263519230,0.4992,189.85,189.82,18.4376]
[1722263519430,0.4992,189.85,189.82,13.1697]
[1722263519619,0.4992,189.85,189.83,0.17]
[1722263520029,0.4992,189.85,189.84,5.2675]
[1722263520444,0.4992,189.85,189.82,18.4376]
[1722263520962,0.4992,189.85,189.83,5.2678]
[1722263521251,0.4992,189.85,189.82,18.4376]
[1722263521553,0.4992,189.85,189.82,18.4377]
[1722263521724,0.4992,189.85,189.8,5.2684]
[1722263521929,0.4992,189.85,189.82,5.2678]
[1722263522243,0.4992,189.85,189.81,13.1703]
[1722263522437,0.4992,189.85,189.84,5.2675]
[1722263522634,0.4992,189.85,189.82,5.2679]
[1722263522847,0.4992,189.85,189.77,45.8405]
[1722263523023,0.4992,189.85,189.8,5.2686]
[1722263523228,0.4992,189.85,189.77,45.8405]
[1722263523538,0.4992,189.85,189.83,5.2678]
[1722263524071,0.4992,189.85,189.78,0.17]
[1722263524361,1.81620036,189.85,189.73,16.5841]
[1722263524562,1.81620036,189.85,189.75,5.2699]
[1722263524563,5.2685,189.81,189.75,5.2699]
[1722263524855,5.269,189.79,189.73,21.8547]
[1722263525039,5.2694,189.78,189.73,16.5841]
[1722263525238,5.2692,189.78,189.72,24.7831]
[1722263525441,5.2696,189.77,189.72,19.5123]
[1722263525637,5.2698,189.76,189.69,5.2715]
[1722263525832,5.2698,189.76,189.68,28.6209]
[1722263526454,5.2694,189.78,189.71,5.2712]
[1722263526658,20.0,189.77,189.72,5.2707]
[1722263526837,20.0,189.77,189.71,13.1777]
[1722263527039,20.0,189.77,189.73,5.2706]
[1722263527240,20.0,189.78,189.74,5.2703]
[1722263527459,24.21,189.81,189.67,19.715]
[1722263527665,5.27,189.75,189.68,5.2719]
[1722263527865,5.2704,189.74,189.67,19.715]
[1722263528064,14.65990991,189.8,189.67,19.715]
[1722263528267,5.2706,189.74,189.67,19.715]
[1722263528448,5.2706,189.73,189.67,24.9871]
[1722263528647,45.0,189.79,189.67,19.715]
[1722263528872,20.0,189.78,189.7,13.1783]
[1722263529169,13.169,189.84,189.74,5.2703]
[1722263529170,37.379,189.84,189.74,5.2703]
[1722263529753,5.2694,189.78,189.73,13.1764]
[1722263529978,5.2696,189.77,189.71,5.2711]
[1722263530276,5.2696,189.77,189.69,13.1788]
[1722263530277,5.2698,189.76,189.7,5.4413]
[1722263530469,1.31763949,189.8,189.67,11.8066]
[1722263530650,37.3832,189.78,189.67,6.5346]
[1722263530957,66.31778729,189.77,189.67,6.5346]
[1722263531271,65.0,189.77,189.67,6.5346]
[1722263531584,5.2712,189.71,189.65,18.4545]
[1722263532377,16.3447,189.76,189.65,13.1817]
[1722263532378,5.2715,189.7,189.65,13.1817]
[1722263532744,37.3854,189.75,189.61,13.1844]
[1722263533054,5.2712,189.71,189.65,5.2727]
[1722263533359,5.271,189.72,189.66,5.2725]
[1722263533667,5.2712,189.71,189.64,13.1827]
[1722263533980,5.2712,189.71,189.65,5.2726]
[1722263534177,5.2715,189.7,189.65,5.2726]
[1722263534750,1.31806163,189.69,189.6,35.7618]
[1722263534949,24.21,189.72,189.6,35.7618]
[1722263535161,5.2723,189.67,189.6,41.0357]
[1722263535371,5.2727,189.66,189.6,41.0357]
[1722263535867,5.273,189.65,189.6,13.1849]
[1722263536559,5.2726,189.66,189.6,18.459]
[1722263536755,20.0,189.65,189.62,5.2736]
[1722263537051,20.0,189.65,189.6,18.4589]
[1722263537256,20.0,189.65,189.62,5.2736]
[1722263537456,5.2726,189.66,189.6,13.1849]
[1722263537777,25.2729,189.65,189.6,13.1849]
[1722263537957,5.2734,189.63,189.58,5.2748]
[1722263538158,5.2731,189.64,189.59,5.2744]
[1722263538368,1.31841326,189.64,189.57,5.2749]
[1722263538576,1.31841326,189.64,189.56,13.1879]
[1722263538577,5.274,189.61,189.56,13.1879]
[1722263538981,5.2743,189.6,189.56,13.1879]
[1722263539165,5.2743,189.6,189.54,5.2759]
[1722263539366,5.2743,189.6,189.55,5.2756]
[1722263539972,1.31841326,189.64,189.53,5.276]
[1722263540180,5.2748,189.58,189.52,28.8277]
[1722263540351,24.21,189.63,189.52,15.637]
[1722263540553,5.2753,189.56,189.51,5.2766]
[1722263540760,5.2753,189.56,189.48,13.1935]
[1722263541055,85.96444625,189.62,189.49,5.277]
[1722263541056,5.276,189.54,189.49,5.277]
[1722263541256,5.2756,189.56,189.5,5.277]
[1722263541574,5.2757,189.55,189.48,18.4708]
[1722263541771,5.2757,189.55,189.49,5.2771]
[1722263541953,5.2751,189.57,189.51,5.2767]
[1722263542279,20.0,189.56,189.52,5.2764]
[1722263542749,5.2748,189.58,189.52,5.2764]
[1722263542750,20.0,189.57,189.52,5.2764]
[1722263543165,25.2752,189.57,189.51,13.1918]
[1722263543481,20.0,189.57,189.51,5.2767]
[1722263543668,24.21,189.6,189.5,5.277]
[1722263543669,5.2753,189.56,189.5,5.277]
[1722263543992,5.2753,189.56,189.49,5.447]
[1722263544161,5.2756,189.55,189.49,0.17]
[1722263544366,5.2751,189.57,189.48,0.34]
[1722263544567,20.0,189.56,189.48,0.34]
[1722263544866,20.0,189.56,189.5,5.277]
[1722263545299,5.275,189.58,189.51,5.2767]
[1722263545499,20.0,189.59,189.54,5.2758]
[1722263545873,37.3919,189.66,189.55,5.2755]
[1722263546073,37.3919,189.66,189.53,13.1903]
[1722263546074,5.2743,189.6,189.54,5.2757]
[1722263546289,5.2743,189.6,189.53,13.1903]
[1722263546290,5.2737,189.62,189.56,5.2753]
[1722263546491,5.274,189.61,189.55,5.2756]
[1722263546701,5.2743,189.6,189.54,5.2759]
[1722263546885,5.2734,189.63,189.58,5.2746]
[1722263547063,24.21,189.69,189.59,13.186]
[1722263547268,5.2724,189.67,189.61,5.2739]
[1722263547780,5.2724,189.67,189.62,5.2736]
[1722263548001,5.2715,189.7,189.62,13.184]
[1722263548171,5.2711,189.72,189.66,5.2725]
[1722263548493,1.31792436,189.71,189.63,0.17]
[1722263548676,1.31792436,189.71,189.62,13.184]
[1722263548677,5.2724,189.67,189.62,13.184]
[1722263548991,5.2725,189.67,189.58,13.1867]
[1722263549294,37.3874,189.72,189.61,13.1844]
[1722263549465,5.2723,189.67,189.61,18.4582]
[1722263549799,5.2723,189.67,189.62,5.2736]
[1722263549983,5.2723,189.67,189.61,18.4583]
[1722263550368,5.2723,189.67,189.62,5.2736]
[1722263550900,5.272,189.69,189.62,5.2736]
[1722263551193,20.0,189.68,189.62,5.2736]
[1722263551368,20.0,189.68,189.63,5.2733]
[1722263551568,37.3874,189.72,189.63,5.2733]
[1722263551791,5.2717,189.69,189.64,5.273]
[1722263551998,5.2714,189.7,189.64,5.273]
[1722263552186,20.0,189.69,189.64,5.273]
[1722263552693,20.0,189.69,189.63,0.17]
[1722263552694,5.272,189.68,189.63,0.17]
[1722263552888,5.272,189.68,189.62,5.2736]
[1722263553280,5.2725,189.66,189.61,13.3544]
[1722263553574,5.2725,189.66,189.62,0.17]
[1722263553791,24.21,189.72,189.61,18.4583]
[1722263553996,65.0,189.71,189.61,18.4583]
[1722263554206,20.0,189.71,189.61,18.4583]
[1722263554384,5.272,189.68,189.62,5.2736]
[1722263554890,20.0,189.71,189.61,13.1844]
[1722263555069,24.21,189.75,189.57,39.7437]
[1722263555070,20.0,189.74,189.64,13.1827]
[1722263555264,5.2714,189.71,189.65,5.2728]
[1722263555497,25.2716,189.7,189.64,13.1827]
[1722263555696,5.2719,189.69,189.64,13.1827]
[1722263555884,1.31804211,189.68,189.6,13.185]
[1722263556074,5.273,189.65,189.6,18.4592]
[1722263556271,5.2726,189.66,189.6,18.4592]
[1722263556872,44.21,189.72,189.61,5.4437]
[1722263557193,44.21,189.72,189.62,5.2736]
[1722263557194,5.2723,189.67,189.62,5.2736]
[1722263557596,1.31814042,189.71,189.6,13.185]
[1722263557896,13.1795,189.69,189.57,33.9962]
[1722263558100,5.2734,189.63,189.57,33.9962]
[1722263558309,5.2734,189.63,189.58,5.2747]
[1722263558479,5.2732,189.64,189.58,5.2747]
[1722263558682,37.3895,189.69,189.57,28.7214]
[1722263558875,16.3836,189.67,189.55,6.4211]
[1722263559109,5.2748,189.58,189.55,6.4211]
[1722263559301,37.3937,189.63,189.52,15.3374]
[1722263559500,66.318811,189.62,189.52,15.3374]
[1722263559699,5.2757,189.55,189.51,6.1929]
[1722263560001,5.2759,189.54,189.49,13.1926]
[1722263560180,13.1871,189.58,189.47,22.6591]
[1722263560386,24.21,189.57,189.47,6.355]
[1722263560574,65.0,189.56,189.45,18.4734]
[1722263560779,5.2769,189.51,189.42,16.3041]
[1722263560980,24.21,189.54,189.44,5.2787]
[1722263561195,45.0,189.53,189.44,5.2787]
[1722263561478,66.3194242,189.53,189.44,5.2787]
[1722263561691,5.2771,189.5,189.44,5.2787]
[1722263561893,1.31942626,189.52,189.42,21.5831]
[1722263562093,1.31948707,189.51,189.42,21.5831]
[1722263562292,5.2777,189.48,189.43,5.2789]
[1722263562572,65.0,189.53,189.43,5.2789]
[1722263562776,65.0,189.53,189.42,16.3041]
[1722263562777,65.0,189.53,189.44,5.2785]
[1722263563207,5.277,189.5,189.44,5.2785]
[1722263563500,20.0,189.49,189.45,5.2784]
[1722263563879,20.0,189.49,189.44,5.2787]
[1722263564907,20.0,189.49,189.45,5.2784]
[1722263565081,20.0,189.5,189.45,5.2784]
[1722263565281,20.0,189.5,189.47,5.2778]
[1722263565508,5.2763,189.53,189.47,5.2778]
[1722263565509,20.0,189.52,189.47,5.2778]
[1722263565710,25.2764,189.52,189.47,5.2778]
[1722263566098,5.2761,189.54,189.48,5.2775]
[1722263566404,14.50608222,189.59,189.47,13.1945]
[1722263566795,1.31908222,189.59,189.47,13.1945]
[1722263566999,5.2767,189.51,189.47,13.1945]
[1722263567211,5.2767,189.51,189.46,5.2781]
[1722263567389,13.1884,189.56,189.46,5.2781]
[1722263567595,5.2756,189.56,189.47,13.755915]
[1722263567886,5.2757,189.55,189.49,5.277]
[1722263568214,13.1878,189.57,189.48,0.17]
[1722263568408,5.2762,189.53,189.47,13.1946]
[1722263568788,5.2758,189.55,189.49,5.2773]
[1722263569092,5.276,189.54,189.49,5.2773]
[1722263569294,5.2756,189.55,189.5,5.277]
[1722263569608,5.2755,189.56,189.5,5.277]
[1722263569825,25.2757,189.55,189.49,5.2773]
[1722263570019,5.276,189.54,189.48,5.2775]
[1722263570182,20.0,189.55,189.43,13.1969]
[1722263570183,1.31913097,189.53,189.43,13.1969]
[1722263570386,5.2767,189.51,189.45,5.2781]
[1722263570605,13.1883,189.57,189.46,13.1952]
[1722263570808,5.2756,189.55,189.43,0.56090383]
[1722263570988,5.2766,189.52,189.42,21.8004305]
[1722263571187,20.0,189.56,189.48,18.4712]
[1722263571409,5.2764,189.53,189.48,13.1938]
[1722263571615,5.2764,189.53,189.48,18.4713]
[1722263571821,5.2759,189.54,189.48,18.4713]
[1722263572019,5.2759,189.54,189.49,5.2772]
[1722263572522,13.189,189.56,189.45,13.196]
[1722263572821,5.2771,189.5,189.45,18.4743]
[1722263573188,5.2774,189.49,189.43,5.2787]
[1722263573699,5.2781,189.46,189.42,16.3041]
[1722263574022,17.18946788,189.54,189.41,25.1027]
[1722263574023,13.1918,189.52,189.41,25.1027]
[1722263574232,13.1934,189.49,189.37,28.5449]
[1722263574394,5.2789,189.44,189.38,5.2803]
[1722263574716,5.2787,189.45,189.38,5.2803]
[1722263575097,5.2787,189.45,189.4,5.2797]
[1722263575704,5.2787,189.45,189.39,5.2801]
[1722263576020,15.431,189.5,189.39,13.1996]
[1722263576190,20.0,189.48,189.42,13.1979]
[1722263576391,20.0,189.48,189.44,5.2784]
[1722263576703,25.2778,189.48,189.42,13.1979]
[1722263576900,20.0,189.49,189.42,18.4771]